[Event "Titled Tuesday Blitz March 28 Early 2023"]
[White "Korchmar, Vasiliy"]
[Black "ArchibaldCerveza29"]
[WhiteFideId "24131750"]
[WhiteElo "2370"]
[BlackElo "2495"]
[Result "1-0"]
[Round "07"]
[TimeControl "180+2"]
[Date "2023.03.28"]
[WhiteClock "0:00:05"]
[BlackClock "0:00:03"]

1. e4 {[%clk 0:02:55]}  e5 {[%clk 0:02:59]} 2. Nf3 {[%clk 0:02:55]}  Nc6 {[%clk 0:03:00]} 3. Bc4 {[%clk 0:02:55]}  Nf6 {[%clk 0:03:00]} 4. d3 {[%clk 0:02:51]}  Be7 {[%clk 0:02:58]} 5. O-O {[%clk 0:02:49]}  O-O {[%clk 0:02:59]} 6. Nc3 {[%clk 0:02:44]}  d6 {[%clk 0:02:56]} 7. a4 {[%clk 0:02:30]}  Be6 {[%clk 0:02:55]} 8. Nd5 {[%clk 0:02:28]}  Bxd5 {[%clk 0:02:53]} 9. exd5 {[%clk 0:02:29]}  Nb8 {[%clk 0:02:53]} 10. Re1 {[%clk 0:02:23]}  Nbd7 {[%clk 0:02:50]} 11. d4 {[%clk 0:02:22]}  e4 {[%clk 0:02:38]} 12. Nd2 {[%clk 0:02:16]}  Nb6 {[%clk 0:02:38]} 13. Bb3 {[%clk 0:02:16]}  Nbxd5 {[%clk 0:02:28]} 14. Nxe4 {[%clk 0:02:15]}  c6 {[%clk 0:02:22]} 15. Qf3 {[%clk 0:02:05]}  Re8 {[%clk 0:02:17]} 16. Bd2 {[%clk 0:01:56]}  Nxe4 {[%clk 0:02:16]} 17. Rxe4 {[%clk 0:01:54]}  Nf6 {[%clk 0:02:14]} 18. Re2 {[%clk 0:01:51]}  d5 {[%clk 0:02:07]} 19. Rae1 {[%clk 0:01:51]}  Qd7 {[%clk 0:02:06]} 20. Bg5 {[%clk 0:01:45]}  Ne4 {[%clk 0:02:01]} 21. Rxe4 {[%clk 0:01:45]}  Bxg5 {[%clk 0:01:55]} 22. R4e2 {[%clk 0:01:06]}  Rxe2 {[%clk 0:01:38]} 23. Qxe2 {[%clk 0:01:05]}  Kf8 {[%clk 0:01:34]} 24. c4 {[%clk 0:00:58]}  dxc4 {[%clk 0:01:31]} 25. Qxc4 {[%clk 0:00:59]}  Re8 {[%clk 0:01:27]} 26. Qc5+ {[%clk 0:00:53]}  Kg8 {[%clk 0:01:22]} 27. Rd1 {[%clk 0:00:48]}  Bf6 {[%clk 0:01:09]} 28. d5 {[%clk 0:00:34]}  cxd5 {[%clk 0:01:10]} 29. Bxd5 {[%clk 0:00:29]}  Qxa4 {[%clk 0:01:05]} 30. b3 {[%clk 0:00:25]}  Qd4 {[%clk 0:00:46]} 31. Qc1 {[%clk 0:00:14]}  Qb6 {[%clk 0:00:44]} 32. Qc4 {[%clk 0:00:11]}  Rf8 {[%clk 0:00:30]} 33. h4 {[%clk 0:00:06]}  h6 {[%clk 0:00:28]} 34. g3 {[%clk 0:00:06]}  Be5 {[%clk 0:00:26]} 35. Kg2 {[%clk 0:00:05]}  Qf6 {[%clk 0:00:26]} 36. Bxb7 {[%clk 0:00:03]}  Rd8 {[%clk 0:00:21]} 37. Bd5 {[%clk 0:00:03]}  Rd6 {[%clk 0:00:17]} 38. Rd3 {[%clk 0:00:03]}  Qe7 {[%clk 0:00:14]} 39. Re3 {[%clk 0:00:03]}  Rf6 {[%clk 0:00:02]} 40. h5 {[%clk 0:00:03]}  Qd6 {[%clk 0:00:01]} 41. Qe4 {[%clk 0:00:03]}  Bc3 {[%clk 0:00:01]} 42. Qe8+ {[%clk 0:00:03]}  Kh7 {[%clk 0:00:01]} 43. Be4+ {[%clk 0:00:04]}  g6 {[%clk 0:00:02]} 44. hxg6+ {[%clk 0:00:05]}  fxg6 {[%clk 0:00:02]} 45. Rxc3 {[%clk 0:00:06]}  Qd4 {[%clk 0:00:02]} 46. Re3 {[%clk 0:00:05]}  Rf7 {[%clk 0:00:01]} 47. Qxf7+ {[%clk 0:00:05]}  Qg7 {[%clk 0:00:02]} 48. Qxg7+ {[%clk 0:00:05]}  Kxg7 {[%clk 0:00:03]} 49. Bc6 {[%clk 0:00:05]} 1-0


[Site "https://www.chess.com"]

[Event "Titled Tuesday Blitz March 28 Early 2023"]
[White "Sztokbant, Bernardo Vainzoff"]
[Black "Skvortsov, Andrei"]
[WhiteFideId "2115956"]
[BlackFideId "24108600"]
[WhiteElo "2222"]
[BlackElo "2259"]
[Result "0-1"]
[Round "07"]
[TimeControl "180+2"]
[Date "2023.03.28"]
[WhiteClock "0:00:03"]
[BlackClock "0:00:32"]

1. e4 {[%clk 0:03:00]}  c6 {[%clk 0:02:57]} 2. d4 {[%clk 0:02:59]}  d5 {[%clk 0:02:58]} 3. e5 {[%clk 0:03:00]}  Bf5 {[%clk 0:02:57]} 4. Nf3 {[%clk 0:02:58]}  e6 {[%clk 0:02:57]} 5. Bd3 {[%clk 0:02:58]}  Ne7 {[%clk 0:02:55]} 6. O-O {[%clk 0:02:58]}  Nd7 {[%clk 0:02:54]} 7. Nc3 {[%clk 0:02:59]}  h6 {[%clk 0:02:50]} 8. Re1 {[%clk 0:02:57]}  a6 {[%clk 0:02:49]} 9. Ne2 {[%clk 0:02:48]}  c5 {[%clk 0:02:48]} 10. c3 {[%clk 0:02:43]}  Rc8 {[%clk 0:02:45]} 11. Be3 {[%clk 0:02:42]}  Bxd3 {[%clk 0:02:42]} 12. Qxd3 {[%clk 0:02:43]}  Nf5 {[%clk 0:02:42]} 13. Nf4 {[%clk 0:02:39]}  cxd4 {[%clk 0:02:38]} 14. cxd4 {[%clk 0:02:36]}  Nb8 {[%clk 0:02:27]} 15. Bd2 {[%clk 0:02:30]}  Be7 {[%clk 0:02:23]} 16. g4 {[%clk 0:02:17]}  Nh4 {[%clk 0:02:22]} 17. Nxh4 {[%clk 0:02:16]}  Bxh4 {[%clk 0:02:23]} 18. Bb4 {[%clk 0:02:05]}  Nc6 {[%clk 0:02:23]} 19. Bc3 {[%clk 0:01:54]}  Qb6 {[%clk 0:02:13]} 20. Nxe6 {[%clk 0:01:43]}  fxe6 {[%clk 0:02:11]} 21. Qg6+ {[%clk 0:01:43]}  Kf8 {[%clk 0:02:07]} 22. Qxe6 {[%clk 0:01:43]}  Re8 {[%clk 0:01:41]} 23. Qxd5 {[%clk 0:01:39]}  Qd8 {[%clk 0:01:39]} 24. Qf3+ {[%clk 0:01:31]}  Kg8 {[%clk 0:01:37]} 25. Re4 {[%clk 0:01:19]}  Ne7 {[%clk 0:01:33]} 26. Rd1 {[%clk 0:00:53]}  Nd5 {[%clk 0:01:32]} 27. Qf5 {[%clk 0:00:33]}  Rf8 {[%clk 0:01:22]} 28. Qe6+ {[%clk 0:00:33]}  Kh7 {[%clk 0:01:22]} 29. Be1 {[%clk 0:00:25]}  Nf4 {[%clk 0:01:12]} 30. Qb3 {[%clk 0:00:25]}  Qg5 {[%clk 0:00:51]} 31. h3 {[%clk 0:00:17]}  Qg6 {[%clk 0:00:48]} 32. Re3 {[%clk 0:00:13]}  h5 {[%clk 0:00:40]} 33. Qxb7 {[%clk 0:00:02]}  Rf7 {[%clk 0:00:32]} 34. Kf1 {[%clk 0:00:03]} 0-1


[Site "https://www.chess.com"]

[Event "Titled Tuesday Blitz March 28 Early 2023"]
[White "Hardaway, Brewington"]
[Black "Kubatko, Ivan"]
[WhiteFideId "30941849"]
[BlackFideId "24111473"]
[WhiteElo "2159"]
[BlackElo "2285"]
[Result "1-0"]
[Round "07"]
[TimeControl "180+2"]
[Date "2023.03.28"]
[WhiteClock "0:00:57"]
[BlackClock "0:00:01"]

1. d3 {[%clk 0:03:00]}  d5 {[%clk 0:02:59]} 2. Bd2 {[%clk 0:03:00]}  Nf6 {[%clk 0:02:58]} 3. c4 {[%clk 0:03:00]}  e6 {[%clk 0:02:56]} 4. g3 {[%clk 0:02:59]}  c5 {[%clk 0:02:55]} 5. Bg2 {[%clk 0:02:59]}  Nc6 {[%clk 0:02:56]} 6. Nf3 {[%clk 0:03:00]}  Be7 {[%clk 0:02:54]} 7. O-O {[%clk 0:03:00]}  O-O {[%clk 0:02:53]} 8. cxd5 {[%clk 0:02:59]}  exd5 {[%clk 0:02:51]} 9. a3 {[%clk 0:02:57]}  Re8 {[%clk 0:02:50]} 10. Re1 {[%clk 0:02:53]}  h6 {[%clk 0:02:26]} 11. Nc3 {[%clk 0:02:44]}  Be6 {[%clk 0:02:20]} 12. Rc1 {[%clk 0:02:44]}  Rc8 {[%clk 0:02:16]} 13. e3 {[%clk 0:02:38]}  Qd7 {[%clk 0:02:09]} 14. Ne2 {[%clk 0:02:35]}  Bh3 {[%clk 0:02:02]} 15. Bc3 {[%clk 0:02:32]}  Bxg2 {[%clk 0:01:34]} 16. Kxg2 {[%clk 0:02:32]}  d4 {[%clk 0:01:31]} 17. exd4 {[%clk 0:02:31]}  cxd4 {[%clk 0:01:30]} 18. Nexd4 {[%clk 0:02:30]}  Nxd4 {[%clk 0:01:25]} 19. Bxd4 {[%clk 0:02:30]}  a6 {[%clk 0:00:57]} 20. Qb3 {[%clk 0:02:20]}  Rxc1 {[%clk 0:00:45]} 21. Rxc1 {[%clk 0:02:18]}  Rd8 {[%clk 0:00:45]} 22. Bb6 {[%clk 0:02:10]}  Re8 {[%clk 0:00:23]} 23. d4 {[%clk 0:01:47]}  Bd6 {[%clk 0:00:21]} 24. Bc5 {[%clk 0:01:46]}  Bb8 {[%clk 0:00:20]} 25. Qc3 {[%clk 0:01:36]}  Nd5 {[%clk 0:00:19]} 26. Qd2 {[%clk 0:01:32]}  b6 {[%clk 0:00:16]} 27. Bb4 {[%clk 0:01:32]}  a5 {[%clk 0:00:16]} 28. Bc3 {[%clk 0:01:32]}  Nf6 {[%clk 0:00:17]} 29. Re1 {[%clk 0:01:29]}  Rd8 {[%clk 0:00:14]} 30. Qe2 {[%clk 0:01:27]}  Qd5 {[%clk 0:00:13]} 31. Kg1 {[%clk 0:01:20]}  Bd6 {[%clk 0:00:13]} 32. Nd2 {[%clk 0:01:18]}  Re8 {[%clk 0:00:11]} 33. Qf1 {[%clk 0:01:17]}  Rxe1 {[%clk 0:00:08]} 34. Qxe1 {[%clk 0:01:18]}  h5 {[%clk 0:00:08]} 35. Qe2 {[%clk 0:01:16]}  h4 {[%clk 0:00:08]} 36. Qc4 {[%clk 0:01:15]}  Qf5 {[%clk 0:00:05]} 37. Qc6 {[%clk 0:01:11]}  hxg3 {[%clk 0:00:04]} 38. hxg3 {[%clk 0:01:10]}  Be7 {[%clk 0:00:02]} 39. Qxb6 {[%clk 0:01:03]}  Ng4 {[%clk 0:00:02]} 40. Qb8+ {[%clk 0:01:03]}  Kh7 {[%clk 0:00:01]} 41. Qf4 {[%clk 0:01:04]}  Qg6 {[%clk 0:00:02]} 42. Qe4 {[%clk 0:01:03]}  f5 {[%clk 0:00:01]} 43. Qxe7 {[%clk 0:01:03]}  Nf6 {[%clk 0:00:01]} 44. Qe3 {[%clk 0:00:57]} 1-0


[Site "https://www.chess.com"]

[Event "Titled Tuesday Blitz March 28 Early 2023"]
[White "Vaibhav Jayant Raut"]
[Black "Pein, Jonathan"]
[WhiteFideId "5089034"]
[BlackFideId "417092"]
[WhiteElo "2156"]
[BlackElo "2151"]
[Result "0-1"]
[Round "07"]
[TimeControl "180+2"]
[Date "2023.03.28"]
[WhiteClock "0:00:03"]
[BlackClock "0:00:10"]

1. c4 {[%clk 0:03:00]}  g6 {[%clk 0:02:55]} 2. Nc3 {[%clk 0:03:00]}  Bg7 {[%clk 0:02:53]} 3. g3 {[%clk 0:03:00]}  e5 {[%clk 0:02:53]} 4. d3 {[%clk 0:02:59]}  Ne7 {[%clk 0:02:54]} 5. Bg2 {[%clk 0:02:59]}  c6 {[%clk 0:02:54]} 6. h4 {[%clk 0:02:59]}  h6 {[%clk 0:02:53]} 7. h5 {[%clk 0:02:58]}  g5 {[%clk 0:02:53]} 8. Nf3 {[%clk 0:02:58]}  d5 {[%clk 0:02:53]} 9. cxd5 {[%clk 0:02:59]}  cxd5 {[%clk 0:02:54]} 10. Nxg5 {[%clk 0:02:59]}  hxg5 {[%clk 0:02:54]} 11. Bxg5 {[%clk 0:03:00]}  Be6 {[%clk 0:02:26]} 12. h6 {[%clk 0:02:47]}  Bf8 {[%clk 0:02:26]} 13. Qb3 {[%clk 0:02:36]}  Nbc6 {[%clk 0:02:13]} 14. Bxe7 {[%clk 0:02:11]}  Qxe7 {[%clk 0:01:58]} 15. Nxd5 {[%clk 0:02:04]}  Bxd5 {[%clk 0:01:58]} 16. Bxd5 {[%clk 0:02:04]}  Rxh6 {[%clk 0:01:58]} 17. Rxh6 {[%clk 0:02:03]}  Bxh6 {[%clk 0:01:59]} 18. e3 {[%clk 0:01:55]}  Qb4+ {[%clk 0:01:54]} 19. Ke2 {[%clk 0:01:48]}  Qxb3 {[%clk 0:01:53]} 20. axb3 {[%clk 0:01:49]}  Bf8 {[%clk 0:01:37]} 21. f4 {[%clk 0:01:41]}  exf4 {[%clk 0:01:29]} 22. gxf4 {[%clk 0:01:42]}  Bb4 {[%clk 0:01:12]} 23. Rh1 {[%clk 0:01:32]}  Ke7 {[%clk 0:00:57]} 24. Rh7 {[%clk 0:01:32]}  Nd8 {[%clk 0:00:50]} 25. Rh8 {[%clk 0:01:27]}  Rc8 {[%clk 0:00:45]} 26. Bc4 {[%clk 0:00:57]}  a6 {[%clk 0:00:41]} 27. d4 {[%clk 0:00:57]}  b5 {[%clk 0:00:38]} 28. Bd3 {[%clk 0:00:57]}  Rc1 {[%clk 0:00:32]} 29. Kf3 {[%clk 0:00:57]}  Rd1 {[%clk 0:00:28]} 30. Be4 {[%clk 0:00:35]}  Rf1+ {[%clk 0:00:23]} 31. Ke2 {[%clk 0:00:29]}  Re1+ {[%clk 0:00:20]} 32. Kf2 {[%clk 0:00:29]}  Rd1 {[%clk 0:00:19]} 33. Kf3 {[%clk 0:00:26]}  Rd2 {[%clk 0:00:19]} 34. Rh6 {[%clk 0:00:26]}  Ne6 {[%clk 0:00:19]} 35. d5 {[%clk 0:00:22]}  Nc5 {[%clk 0:00:19]} 36. Rc6 {[%clk 0:00:22]}  Rxb2 {[%clk 0:00:18]} 37. f5 {[%clk 0:00:17]}  Rxb3 {[%clk 0:00:16]} 38. f6+ {[%clk 0:00:17]}  Kd8 {[%clk 0:00:15]} 39. Bf5 {[%clk 0:00:14]}  Nd7 {[%clk 0:00:14]} 40. Rxa6 {[%clk 0:00:14]}  Ra3 {[%clk 0:00:12]} 41. Rc6 {[%clk 0:00:10]}  Bd2 {[%clk 0:00:11]} 42. Kg4 {[%clk 0:00:03]}  Rxe3 {[%clk 0:00:09]} 43. Ra6 {[%clk 0:00:04]}  Rc3 {[%clk 0:00:07]} 44. Ra8+ {[%clk 0:00:04]}  Rc8 {[%clk 0:00:07]} 45. Ra2 {[%clk 0:00:04]}  Bc3 {[%clk 0:00:08]} 46. Rh2 {[%clk 0:00:05]}  Nxf6+ {[%clk 0:00:08]} 47. Kf4 {[%clk 0:00:05]}  Rc4+ {[%clk 0:00:09]} 48. Kg5 {[%clk 0:00:05]}  Ke7 {[%clk 0:00:09]} 49. d6+ {[%clk 0:00:05]}  Kxd6 {[%clk 0:00:09]} 50. Rh1 {[%clk 0:00:05]}  Nd5 {[%clk 0:00:09]} 51. Rd1 {[%clk 0:00:05]}  f6+ {[%clk 0:00:10]} 52. Kg6 {[%clk 0:00:05]}  b4 {[%clk 0:00:10]} 53. Kf7 {[%clk 0:00:04]}  b3 {[%clk 0:00:11]} 54. Rh1 {[%clk 0:00:05]}  Rc7+ {[%clk 0:00:10]} 55. Kg6 {[%clk 0:00:04]}  b2 {[%clk 0:00:11]} 56. Bb1 {[%clk 0:00:04]}  Nf4+ {[%clk 0:00:12]} 57. Kf5 {[%clk 0:00:05]}  Nd5 {[%clk 0:00:12]} 58. Rh8 {[%clk 0:00:04]}  Be5 {[%clk 0:00:12]} 59. Ke4 {[%clk 0:00:05]}  Rc1 {[%clk 0:00:12]} 60. Ba2 {[%clk 0:00:04]}  b1=Q+ {[%clk 0:00:11]} 61. Bxb1 {[%clk 0:00:05]}  Rxb1 {[%clk 0:00:12]} 62. Rd8+ {[%clk 0:00:05]}  Ke6 {[%clk 0:00:12]} 63. Ra8 {[%clk 0:00:05]}  Rb4+ {[%clk 0:00:12]} 64. Kd3 {[%clk 0:00:06]}  Ne7 {[%clk 0:00:13]} 65. Ra6+ {[%clk 0:00:05]}  Kf5 {[%clk 0:00:13]} 66. Ke2 {[%clk 0:00:06]}  Re4+ {[%clk 0:00:14]} 67. Kf3 {[%clk 0:00:07]}  Rf4+ {[%clk 0:00:13]} 68. Kg2 {[%clk 0:00:07]}  Rc4 {[%clk 0:00:14]} 69. Kh3 {[%clk 0:00:07]}  Rc3+ {[%clk 0:00:14]} 70. Kg2 {[%clk 0:00:05]}  Kg4 {[%clk 0:00:13]} 71. Kh1 {[%clk 0:00:05]}  Kh3 {[%clk 0:00:12]} 72. Ra1 {[%clk 0:00:04]}  Nf5 {[%clk 0:00:10]} 73. Re1 {[%clk 0:00:02]}  Ng3+ {[%clk 0:00:10]} 74. Kg1 {[%clk 0:00:03]}  Bd4+ {[%clk 0:00:10]} 75. Re3 {[%clk 0:00:03]}  Bxe3# {[%clk 0:00:10]} 0-1


[Site "https://www.chess.com"]

[Event "Titled Tuesday Blitz March 28 Early 2023"]
[White "Kim, Sergey"]
[Black "Shubenkova, Veronika"]
[WhiteFideId "13700570"]
[BlackFideId "44124040"]
[WhiteElo "2623"]
[BlackElo "2027"]
[Result "1/2-1/2"]
[Round "07"]
[TimeControl "180+2"]
[Date "2023.03.28"]
[WhiteClock "0:00:43"]
[BlackClock "0:01:15"]

1. d4 {[%clk 0:02:59]}  d5 {[%clk 0:03:00]} 2. c4 {[%clk 0:02:56]}  e6 {[%clk 0:03:00]} 3. Nc3 {[%clk 0:02:55]}  Nf6 {[%clk 0:03:00]} 4. Nf3 {[%clk 0:02:55]}  c6 {[%clk 0:03:00]} 5. e3 {[%clk 0:02:55]}  Bd6 {[%clk 0:03:00]} 6. Bd3 {[%clk 0:02:55]}  O-O {[%clk 0:03:00]} 7. O-O {[%clk 0:02:55]}  Nbd7 {[%clk 0:02:59]} 8. e4 {[%clk 0:02:54]}  dxe4 {[%clk 0:02:59]} 9. Bxe4 {[%clk 0:02:55]}  Qc7 {[%clk 0:02:56]} 10. Bc2 {[%clk 0:02:51]}  Bf4 {[%clk 0:02:55]} 11. Re1 {[%clk 0:02:49]}  Bxc1 {[%clk 0:02:54]} 12. Rxc1 {[%clk 0:02:48]}  Rd8 {[%clk 0:02:53]} 13. Qd3 {[%clk 0:02:45]}  Nf8 {[%clk 0:02:53]} 14. Qe2 {[%clk 0:02:41]}  b6 {[%clk 0:02:51]} 15. Red1 {[%clk 0:02:39]}  Bb7 {[%clk 0:02:51]} 16. Bb3 {[%clk 0:02:35]}  Ng6 {[%clk 0:02:50]} 17. Qe3 {[%clk 0:02:33]}  a6 {[%clk 0:02:50]} 18. h3 {[%clk 0:02:31]}  Qf4 {[%clk 0:02:39]} 19. Qxf4 {[%clk 0:02:23]}  Nxf4 {[%clk 0:02:39]} 20. Kf1 {[%clk 0:02:21]}  c5 {[%clk 0:02:38]} 21. dxc5 {[%clk 0:02:17]}  bxc5 {[%clk 0:02:36]} 22. Na4 {[%clk 0:02:16]}  Ne4 {[%clk 0:02:32]} 23. Bc2 {[%clk 0:02:04]}  Rxd1+ {[%clk 0:02:27]} 24. Rxd1 {[%clk 0:02:03]}  Rc8 {[%clk 0:02:16]} 25. Bxe4 {[%clk 0:01:53]}  Bxe4 {[%clk 0:02:16]} 26. Nxc5 {[%clk 0:01:52]}  Bxf3 {[%clk 0:02:12]} 27. gxf3 {[%clk 0:01:51]}  g5 {[%clk 0:02:11]} 28. b4 {[%clk 0:01:40]}  Nxh3 {[%clk 0:02:07]} 29. Rd6 {[%clk 0:01:36]}  a5 {[%clk 0:02:04]} 30. a3 {[%clk 0:01:36]}  axb4 {[%clk 0:02:04]} 31. axb4 {[%clk 0:01:36]}  Nf4 {[%clk 0:02:04]} 32. Rd4 {[%clk 0:01:29]}  Kf8 {[%clk 0:01:56]} 33. Nd7+ {[%clk 0:01:21]}  Ke7 {[%clk 0:01:56]} 34. c5 {[%clk 0:01:19]}  Nd5 {[%clk 0:01:54]} 35. Ne5 {[%clk 0:01:17]}  f6 {[%clk 0:01:51]} 36. Nd3 {[%clk 0:01:15]}  Nc3 {[%clk 0:01:47]} 37. Rd6 {[%clk 0:01:11]}  h5 {[%clk 0:01:43]} 38. Rb6 {[%clk 0:01:09]}  Rc7 {[%clk 0:01:38]} 39. b5 {[%clk 0:01:06]}  Na4 {[%clk 0:01:36]} 40. Rc6 {[%clk 0:00:55]}  Rxc6 {[%clk 0:01:35]} 41. bxc6 {[%clk 0:00:56]}  Kd8 {[%clk 0:01:35]} 42. f4 {[%clk 0:00:55]}  g4 {[%clk 0:01:32]} 43. Kg2 {[%clk 0:00:53]}  h4 {[%clk 0:01:32]} 44. f3 {[%clk 0:00:51]}  g3 {[%clk 0:01:31]} 45. Kh3 {[%clk 0:00:49]}  Kc7 {[%clk 0:01:31]} 46. Ne1 {[%clk 0:00:49]}  Nxc5 {[%clk 0:01:26]} 47. Kxh4 {[%clk 0:00:48]}  Nd3 {[%clk 0:01:25]} 48. Ng2 {[%clk 0:00:47]}  Kxc6 {[%clk 0:01:22]} 49. Kxg3 {[%clk 0:00:47]}  Kd6 {[%clk 0:01:21]} 50. Ne3 {[%clk 0:00:47]}  Ke7 {[%clk 0:01:20]} 51. Ng4 {[%clk 0:00:45]}  Kf7 {[%clk 0:01:17]} 52. Ne3 {[%clk 0:00:45]}  Kg6 {[%clk 0:01:17]} 53. Ng4 {[%clk 0:00:43]}  Kf7 {[%clk 0:01:15]} 54. Ne3 {[%clk 0:00:43]}  Kg6 {[%clk 0:01:15]} 55. Ng4 {[%clk 0:00:43]}  Kf7 {[%clk 0:01:15]} 1/2-1/2


[Site "https://www.chess.com"]

[Event "Titled Tuesday Blitz March 28 Early 2023"]
[White "Salman, Pavel"]
[Black "Richter, Nils"]
[WhiteFideId "24153753"]
[BlackFideId "12990809"]
[WhiteElo "2187"]
[BlackElo "2381"]
[Result "1-0"]
[Round "07"]
[TimeControl "180+2"]
[Date "2023.03.28"]
[WhiteClock "0:00:15"]
[BlackClock "0:00:02"]

1. d4 {[%clk 0:02:59]}  d5 {[%clk 0:02:59]} 2. Nc3 {[%clk 0:02:59]}  Nf6 {[%clk 0:02:56]} 3. Bf4 {[%clk 0:02:59]}  a6 {[%clk 0:02:51]} 4. e3 {[%clk 0:02:59]}  Bg4 {[%clk 0:02:48]} 5. f3 {[%clk 0:02:59]}  Bd7 {[%clk 0:02:48]} 6. g4 {[%clk 0:02:59]}  h6 {[%clk 0:02:46]} 7. Bd3 {[%clk 0:02:56]}  e6 {[%clk 0:02:45]} 8. Nge2 {[%clk 0:02:57]}  c5 {[%clk 0:02:44]} 9. Ng3 {[%clk 0:02:48]}  Nc6 {[%clk 0:02:44]} 10. Be5 {[%clk 0:02:40]}  Qb6 {[%clk 0:02:39]} 11. Na4 {[%clk 0:02:39]}  Qa5+ {[%clk 0:02:33]} 12. c3 {[%clk 0:02:39]}  c4 {[%clk 0:02:30]} 13. Bc2 {[%clk 0:02:35]}  b5 {[%clk 0:02:28]} 14. Bxf6 {[%clk 0:02:34]}  bxa4 {[%clk 0:02:23]} 15. Be5 {[%clk 0:02:26]}  a3 {[%clk 0:02:23]} 16. Qd2 {[%clk 0:02:05]}  axb2 {[%clk 0:02:20]} 17. Rb1 {[%clk 0:02:06]}  Nxe5 {[%clk 0:02:15]} 18. dxe5 {[%clk 0:02:06]}  Ba3 {[%clk 0:02:14]} 19. O-O {[%clk 0:02:04]}  Ba4 {[%clk 0:02:05]} 20. f4 {[%clk 0:01:58]}  Bxc2 {[%clk 0:02:04]} 21. Qxc2 {[%clk 0:01:59]}  g6 {[%clk 0:01:55]} 22. f5 {[%clk 0:01:58]}  gxf5 {[%clk 0:01:55]} 23. gxf5 {[%clk 0:01:59]}  O-O-O {[%clk 0:01:51]} 24. fxe6 {[%clk 0:01:55]}  fxe6 {[%clk 0:01:51]} 25. Rf7 {[%clk 0:01:54]}  Rd7 {[%clk 0:01:47]} 26. Qg6 {[%clk 0:01:51]}  Qxc3 {[%clk 0:01:36]} 27. Qxe6 {[%clk 0:01:48]}  Qxe3+ {[%clk 0:00:52]} 28. Kg2 {[%clk 0:01:48]}  Rd8 {[%clk 0:00:50]} 29. Qc6+ {[%clk 0:01:47]}  Kb8 {[%clk 0:00:50]} 30. Rxd7 {[%clk 0:01:43]}  Rxd7 {[%clk 0:00:49]} 31. Qxd7 {[%clk 0:01:41]}  Qxe5 {[%clk 0:00:45]} 32. Qa4 {[%clk 0:01:29]}  Qc3 {[%clk 0:00:23]} 33. Ne2 {[%clk 0:01:13]}  Qd3 {[%clk 0:00:20]} 34. Rxb2+ {[%clk 0:00:53]}  Bxb2 {[%clk 0:00:19]} 35. Qb4+ {[%clk 0:00:53]}  Kc7 {[%clk 0:00:19]} 36. Qxb2 {[%clk 0:00:54]}  Qe4+ {[%clk 0:00:18]} 37. Kf2 {[%clk 0:00:54]}  Qf5+ {[%clk 0:00:18]} 38. Ke1 {[%clk 0:00:53]}  Qe4 {[%clk 0:00:14]} 39. Qg7+ {[%clk 0:00:51]}  Kb8 {[%clk 0:00:14]} 40. Qf8+ {[%clk 0:00:47]}  Kb7 {[%clk 0:00:14]} 41. Qf7+ {[%clk 0:00:47]}  Kb6 {[%clk 0:00:14]} 42. Qf6+ {[%clk 0:00:44]}  Ka5 {[%clk 0:00:11]} 43. Qd8+ {[%clk 0:00:42]}  Ka4 {[%clk 0:00:11]} 44. Qd7+ {[%clk 0:00:35]}  Ka3 {[%clk 0:00:10]} 45. Qd6+ {[%clk 0:00:36]}  Kxa2 {[%clk 0:00:07]} 46. Qxa6+ {[%clk 0:00:32]}  Kb3 {[%clk 0:00:07]} 47. Qxh6 {[%clk 0:00:23]}  Kc2 {[%clk 0:00:04]} 48. Qc1+ {[%clk 0:00:22]}  Kb3 {[%clk 0:00:05]} 49. Qc3+ {[%clk 0:00:23]}  Ka4 {[%clk 0:00:05]} 50. Qa1+ {[%clk 0:00:22]}  Kb5 {[%clk 0:00:05]} 51. Qb2+ {[%clk 0:00:19]}  Kc6 {[%clk 0:00:04]} 52. Qf6+ {[%clk 0:00:19]}  Kb5 {[%clk 0:00:05]} 53. Kf2 {[%clk 0:00:18]}  Kb4 {[%clk 0:00:03]} 54. Qd6+ {[%clk 0:00:18]}  Kb3 {[%clk 0:00:03]} 55. Qb6+ {[%clk 0:00:18]}  Kc2 {[%clk 0:00:03]} 56. Qe3 {[%clk 0:00:17]}  Qf5+ {[%clk 0:00:01]} 57. Kg2 {[%clk 0:00:16]}  Qg6+ {[%clk 0:00:02]} 58. Ng3 {[%clk 0:00:16]}  Qf5 {[%clk 0:00:02]} 59. Nxf5 {[%clk 0:00:15]} 1-0


[Site "https://www.chess.com"]

[Event "Titled Tuesday Blitz March 28 Early 2023"]
[White "Alex_Sahakyan2006"]
[Black "Pniaczek, Marek"]
[BlackFideId "21800421"]
[WhiteElo "2592"]
[BlackElo "2138"]
[Result "1-0"]
[Round "07"]
[TimeControl "180+2"]
[Date "2023.03.28"]
[WhiteClock "0:00:37"]
[BlackClock "0:00:01"]

1. Nc3 {[%clk 0:03:00]}  Nf6 {[%clk 0:02:49]} 2. d3 {[%clk 0:02:58]}  e5 {[%clk 0:02:44]} 3. Nf3 {[%clk 0:02:57]}  Nc6 {[%clk 0:02:41]} 4. g3 {[%clk 0:02:57]}  d5 {[%clk 0:02:33]} 5. Bg2 {[%clk 0:02:57]}  d4 {[%clk 0:02:33]} 6. Nb1 {[%clk 0:02:55]}  h5 {[%clk 0:02:19]} 7. Bg5 {[%clk 0:02:53]}  Be7 {[%clk 0:02:15]} 8. Nbd2 {[%clk 0:02:49]}  Be6 {[%clk 0:02:08]} 9. h4 {[%clk 0:02:43]}  Ng4 {[%clk 0:02:03]} 10. Bxe7 {[%clk 0:02:42]}  Qxe7 {[%clk 0:02:03]} 11. Ng5 {[%clk 0:02:41]}  O-O-O {[%clk 0:01:59]} 12. Nxe6 {[%clk 0:02:28]}  Qxe6 {[%clk 0:01:57]} 13. c3 {[%clk 0:02:28]}  f5 {[%clk 0:01:43]} 14. Qb3 {[%clk 0:02:26]}  Qxb3 {[%clk 0:01:30]} 15. axb3 {[%clk 0:02:23]}  Rh6 {[%clk 0:01:19]} 16. b4 {[%clk 0:02:18]}  e4 {[%clk 0:01:12]} 17. dxe4 {[%clk 0:02:15]}  dxc3 {[%clk 0:01:10]} 18. bxc3 {[%clk 0:02:14]}  Nxf2 {[%clk 0:01:10]} 19. Kxf2 {[%clk 0:02:10]}  Rxd2 {[%clk 0:01:09]} 20. exf5 {[%clk 0:02:09]}  Ne5 {[%clk 0:01:07]} 21. Rxa7 {[%clk 0:02:08]}  Ng4+ {[%clk 0:01:05]} 22. Kf3 {[%clk 0:02:01]}  Rf6 {[%clk 0:01:05]} 23. Kf4 {[%clk 0:01:59]}  Rxe2 {[%clk 0:01:01]} 24. Bxb7+ {[%clk 0:01:53]}  Kd8 {[%clk 0:00:48]} 25. Rd1+ {[%clk 0:01:51]}  Ke7 {[%clk 0:00:48]} 26. Bf3 {[%clk 0:01:50]}  Rf2 {[%clk 0:00:36]} 27. Rxc7+ {[%clk 0:01:49]}  Ke8 {[%clk 0:00:36]} 28. Rc8+ {[%clk 0:01:44]}  Ke7 {[%clk 0:00:36]} 29. Rc7+ {[%clk 0:01:44]}  Ke8 {[%clk 0:00:37]} 30. Rd3 {[%clk 0:01:40]}  g6 {[%clk 0:00:33]} 31. Rc5 {[%clk 0:01:24]}  Ke7 {[%clk 0:00:21]} 32. Kg5 {[%clk 0:01:19]}  Rxf5+ {[%clk 0:00:17]} 33. Rxf5 {[%clk 0:01:17]}  gxf5 {[%clk 0:00:17]} 34. Bxg4 {[%clk 0:01:17]}  hxg4 {[%clk 0:00:14]} 35. Rd5 {[%clk 0:01:09]}  Ke6 {[%clk 0:00:10]} 36. Rd4 {[%clk 0:00:45]}  Rf3 {[%clk 0:00:09]} 37. Rf4 {[%clk 0:00:43]}  Rxg3 {[%clk 0:00:04]} 38. Rxf5 {[%clk 0:00:43]}  Rxc3 {[%clk 0:00:05]} 39. Kxg4 {[%clk 0:00:40]}  Rc1 {[%clk 0:00:04]} 40. Rf4 {[%clk 0:00:39]}  Rg1+ {[%clk 0:00:02]} 41. Kf3 {[%clk 0:00:37]}  Ke5 {[%clk 0:00:01]} 42. Rg4 {[%clk 0:00:38]}  Kf5 {[%clk 0:00:01]} 43. Rxg1 {[%clk 0:00:37]} 1-0


[Site "https://www.chess.com"]